Cogmind - Beta 13 @@@ ROGUE MODE // 2024.04.09 @ 18:23:16 Player: DeNiCoN Result: Destroyed by S-27 Virus with Autogun Performance ------------- Evolutions (4) 2000 Regions Visited (8) 1600 Robots Destroyed (92) 460 Value Destroyed (2542) 2542 Prototype IDs (2) 40 Alien Tech Used (0) 0 Bonus (-83) -83 TOTAL SCORE: 6559 Bonus ------- High Alert Combat Kills 44 Friendly Fire -127 Cogmind --------- Core Integrity 0/850 Matter 62/300 Energy 29/100 System Corruption 2% Temperature Cool (0) Movement Core (50) Location -6/Factory Parts ------- > --- POWER (3) -------- (None) > --- PROPULSION (5) --- (None) > --- UTILITY (4) ------ (None) > --- WEAPON (3) ------- (None) > --- INVENTORY (5) ---- Micro Nuclear Core Improved Signal Interpreter Peak State ------------ > --- POWER ------------ Micro Nuclear Core Neutrino Core > --- PROPULSION ------- Armored Treads Medium Treads Carbon-fiber Leg Carbon-fiber Leg > --- UTILITY ---------- Core Analyzer Heart of Steel > --- WEAPON ----------- Pulse Rifle Heavy Laser Plasma Cannon > --- INVENTORY -------- Micro Nuclear Core Micro Nuclear Core Carbon-fiber Leg Improved Heat Sink Improved Signal Interpreter [Rating: 63] Favorites ----------- Power Ion Engine Engine Ion Engine Power Core Micro Nuclear Core Propulsion Light Treads Treads Light Treads Leg Carbon-fiber Leg Hover Unit Aerolev Unit Utility Small Storage Unit Device Heart of Steel Storage Small Storage Unit Processor Core Analyzer Protection Light Armor Plating Weapon Mini Grenade Launcher Energy Gun Heavy Laser Energy Cannon Plasma Cannon Ballistic Gun Assault Rifle Launcher Mini Grenade Launcher Build | -11 -10 -10 -9 -8 -7 -7 -7 -6 ------- Run | Yrd Mat Min Mat Mat Fac Low Low Fac Slots Evolved 8 | . . . 2 2 2 . . 2 Power 2 | . . . . . 1 . . 1 Propulsion 3 | . . . 2 . . . . 1 Utility 2 | . . . . 2 . . . . Weapon 1 | . . . . . 1 . . . Parts Attached 70 | 7 5 1 13 14 15 8 1 6 Power 9 | 2 . . . 2 3 1 . 1 Engine 3 | 2 . . . 1 . . . . Core 6 | . . . . 1 3 1 . 1 Reactor . | . . . . . . . . . Propulsion 26 | 2 2 1 5 4 8 3 . 1 Treads 12 | 2 2 1 3 . 2 2 . . Leg 13 | . . . 1 4 6 1 . 1 Wheel . | . . . . . . . . . Hover 1 | . . . 1 . . . . . Flight . | . . . . . . . . . Utility 14 | 1 1 . 2 4 1 2 . 3 Device 8 | . . . . 3 . 2 . 3 Storage 1 | 1 . . . . . . . . Processor 1 | . . . . . 1 . . . Hackware . | . . . . . . . . . Protection 4 | . 1 . 2 1 . . . . Artifact . | . . . . . . . . . Weapon 21 | 2 2 . 6 4 3 2 1 1 Energy Gun 5 | . . . . 2 . 1 1 1 Energy Cannon 1 | . . . . . . 1 . . Ballistic Gun 5 | 2 . . 2 . 1 . . . Ballistic Cannon . | . . . . . . . . . Launcher 10 | . 2 . 4 2 2 . . . Special Weapon . | . . . . . . . . . Impact Weapon . | . . . . . . . . . Slashing Weapon . | . . . . . . . . . Piercing Weapon . | . . . . . . . . . Special Melee Weapon . | . . . . . . . . . Unidentified Prototypes 2 | . . . 1 . . 1 . . Parts Lost 43 | . . . 13 7 4 5 . 14 Power 5 | . . . 1 1 . . . 3 Propulsion 14 | . . . 5 2 1 1 . 5 Utility 10 | . . . 3 2 2 1 . 2 Weapon 14 | . . . 4 2 1 3 . 4 Highest Loss Streak 12 | . . . 6 4 2 7 . 12 To Critical Strikes . | . . . . . . . . . Average Slot Usage (%) 80 | . 85 100 74 55 74 68 82 50 Engine 11 | . 14 14 6 3 3 . . . Core 1 | . . . . 2 9 15 15 9 Treads 23 | . 27 28 27 . 4 12 15 8 Leg 2 | . . . 2 12 9 15 15 8 Device 1 | . . . . 8 13 6 7 5 Storage 11 | . 14 14 11 9 6 . . . Protection 1 | . . 14 8 3 . . . . Energy Gun 1 | . . . . 6 . 6 13 8 Ballistic Gun 6 | . 9 . 5 . 5 . . . Launcher 16 | . 18 28 13 10 14 . . . Naked Turns 72 | . . . . . . . . 72 Heaviest Build 44 | 14 15 15 21 19 28 41 44 44 Greatest Support 89 | 40 46 46 89 30 60 48 30 30 Greatest Overweight (x) 7 | 3 3 . 4 4 7 1 1 5 Average Overweight (x) . | 1 . . . . . . 1 1 Largest Inventory Capacity 8 | 8 8 8 8 8 8 5 5 5 Average Capacity 7 | 7 8 8 8 8 7 5 5 5 Most Carried 8 | 5 8 8 8 5 8 5 5 5 Average Carried 7 | 4 7 7 5 3 5 4 5 4 Final Capacity 8 | 8 8 8 8 8 5 5 5 5 Final Carried 8 | 1 8 8 5 4 5 5 5 2 Class Distribution -------------------- 87% | Mutant 4% | Scavenger-Mutant 3% | Scavenger-Gunner Dominant Class ---------------- Mutant | -10/Materials Mutant | -10/Mines Mutant | -9/Materials Mutant | -8/Materials Bomber | -7/Factory Scavenger-Mutant | -7/Lower Caves Scavenger-Gunner | -7/Lower Caves Scavenger-Gunner | -6/Factory Resources | -11 -10 -10 -9 -8 -7 -7 -7 -6 ----------- Run | Yrd Mat Min Mat Mat Fac Low Low Fac Matter Collected 2566 | 270 49 40 433 404 364 306 10 690 Remotely 768 | . . . . 404 364 . . . Salvage Created 1962 | . 159 48 376 461 338 293 41 246 Parts 158 | . 27 4 54 26 26 12 3 6 Haulers Intercepted 1 | . . . . 1 . . . . Recyclers Shooed 5 | . . . 2 . . . . 3 Parts Field Recycled . | . . . . . . . . . Retrieved Matter . | . . . . . . . . . Parts Self-Destructed 11 | . . . . . . 8 3 . Prevented . | . . . . . . . . . Kills | -11 -10 -10 -9 -8 -7 -7 -7 -6 ------- Run | Yrd Mat Min Mat Mat Fac Low Low Fac Combat Hostiles Destroyed 57 | . 5 2 15 14 10 7 1 3 Melee 1 | . . . 1 . . . . . Guns 10 | . . . 3 . . 5 . 2 Cannons 2 | . . . . . . 1 1 . AOE 43 | . 5 2 11 14 10 1 . . Classes Destroyed 11 | . 6 . 1 4 . . . . Worker 10 | . 1 . 5 . 2 . . 2 Builder 11 | . 2 . 6 1 1 . . 1 Tunneler 1 | . . . . 1 . . . . Hauler 1 | . . . . 1 . . . . Recycler 3 | . 1 . 1 1 . . . . Operator 1 | . . . . 1 . . . . Watcher 8 | . 3 . 4 . 1 . . . Swarmer 13 | . 2 . 7 4 . . . . Grunt 35 | . 3 2 7 8 7 6 . 2 Sentry 3 | . . . 1 1 . . . 1 Hunter 6 | . . . . 1 3 1 1 . Best Kill Streak 14 | . 4 5 14 7 7 6 1 2 Combat Bots Only 10 | . 2 2 10 5 5 6 1 2 Max Kills in Single Turn 4 | . 2 1 4 4 2 1 1 1 Gunslinging . | . . . . . . . . . Exploded 4 | . 2 1 3 4 2 1 . . Melee 1 | . . . 1 . . . . . Uniques/NPCs Destroyed . | . . . . . . . . . Combat | -11 -10 -10 -9 -8 -7 -7 -7 -6 -------- Run | Yrd Mat Min Mat Mat Fac Low Low Fac Hostile Shots Fired 589 | . 10 2 152 46 48 31 . 300 Missed 212 | . 5 . 39 15 20 11 . 122 Damage Taken 5604 | . 49 151 1805 716 547 387 . 1949 Core 1604 | . . . 353 177 118 105 . 851 Absorbed by Shields . | . . . . . . . . . Core Remaining (%) 69 | 100 . 100 11 67 . . 68 . Volleys Fired 134 | . 11 2 37 15 25 12 1 31 Largest 3 | . 2 2 2 2 2 2 3 3 Hottest 212 | . 60 60 60 90 60 149 212 212 Shots Fired 213 | . 22 4 49 30 34 19 3 52 Gun 92 | . . . 19 6 12 11 2 42 Cannon 15 | . . . . . . 4 1 10 Launcher 106 | . 22 4 30 24 22 4 . . Special . | . . . . . . . . . Kinetic 33 | . . . 19 . 12 2 . . Thermal 68 | . . . . . . 13 3 52 Explosive 106 | . 22 4 30 24 22 4 . . Electromagnetic 6 | . . . . 6 . . . . Robot Hit Streak 9 | . 4 3 7 5 9 4 4 7 Robot Miss Streak 5 | . 3 1 3 3 2 1 . 5 Penetration Max . | . . . . . . . . . Secondary Targets . | . . . . . . . . . Shots Hit Robots 126 | . 7 3 32 17 22 12 2 31 Core Hits 170 | . 13 4 51 30 30 15 2 25 Critical Kills . | . . . . . . . . . Critical Parts Destroyed . | . . . . . . . . . Critical Strikes 3 | . . . . . . . . 3 Burn 3 | . . . . . . . . 3 Melee Attacks . | . . . . . . . . . Impact . | . . . . . . . . . Slashing . | . . . . . . . . . Piercing . | . . . . . . . . . Sneak Attacks . | . . . . . . . . . Combat Hostiles . | . . . . . . . . . Follow-up Attacks . | . . . . . . . . . Damage Inflicted 7867 | . 778 229 2338 1514 1579 608 43 778 Guns 917 | . . . 151 41 93 129 19 484 Cannons 308 | . . . . . . 79 24 205 Explosions 6524 | . 778 229 2170 1461 1486 400 . . Melee . | . . . . . . . . . Ramming 118 | . . . 17 12 . . . 89 Kinetic 259 | . . . 151 . 93 15 . . Thermal 1085 | . . . . 160 . 193 43 689 Explosive 6364 | . 778 229 2170 1301 1486 400 . . Electromagnetic 41 | . . . . 41 . . . . Impact . | . . . . . . . . . Slashing . | . . . . . . . . . Piercing . | . . . . . . . . . Highest Corruption 2 | . . . 2 . . . . 2 Average Corruption 2 | . . . 2 . . . . 2 Corruption Purged . | . . . . . . . . . Corruption Blocked . | . . . . . . . . . Effects 8 | . . . 7 . . . . 1 Message Errors 1 | . . . 1 . . . . . Matter Fused 3 | . . . 3 . . . . . Energy Discharges 1 | . . . 1 . . . . . Data Loss (minor) 1 | . . . 1 . . . . . Data Loss (major) 1 | . . . . . . . . 1 Weapon Failures 1 | . . . 1 . . . . . Overload Shots . | . . . . . . . . . Overflow Damage 208 | . 5 . 101 40 39 23 . . Projectiles . | . . . . . . . . . Explosions 208 | . 5 . 101 40 39 23 . . Melee . | . . . . . . . . . Knockbacks 4 | . . . . . . . . 4 Impact 4 | . . . . . . . . 4 Kinetic . | . . . . . . . . . Secondary . | . . . . . . . . . Self-Inflicted Damage 1070 | . . 112 476 219 133 88 . 42 Shots 34 | . . 3 15 7 6 3 . . Rammed 31 | . . . 7 . . . . 24 Targets Rammed 34 | . . . 9 1 . . . 24 Kicked 2 | . . . 1 1 . . . . Crushed 1 | . . . 1 . . . . . Highest Temperature 657 | . 18 30 21 33 10 396 153 657 Average Temperature 112 | . 7 18 6 14 5 127 80 190 Received Heat Transfer 1521 | . 18 12 510 225 99 171 . 486 Effects 10 | . . . . . . . . 10 Shutdowns 1 | . . . . . . . . 1 Energy Bleed 3 | . . . . . . . . 3 Matter Decay 1 | . . . . . . . . 1 Short Circuit 3 | . . . . . . . . 3 Damage (minor) 1 | . . . . . . . . 1 Damage (major) 1 | . . . . . . . . 1 Siege Activations . | . . . . . . . . . Robots Corrupted . | . . . . . . . . . Combat Hostiles . | . . . . . . . . . Parts Fried . | . . . . . . . . . Impact Corruptions . | . . . . . . . . . Robots Melted 1 | . . . . . . . . 1 Combat Hostiles 1 | . . . . . . . . 1 Parts Melted 4 | . . . . . . 1 . 3 Heat Transferred 2243 | . . . . 200 . 372 87 1584 Parts Sabotaged . | . . . . . . . . . Parts Stolen . | . . . . . . . . . Parts Stripped . | . . . . . . . . . Power Chain Reactions 1 | . . . . 1 . . . . Alert | -11 -10 -10 -9 -8 -7 -7 -7 -6 ------- Run | Yrd Mat Min Mat Mat Fac Low Low Fac Peak Influence 521 | . 291 172 377 521 408 . . 107 Initial 186 | . . 113 . 104 186 . . 102 Average 43 | . 8 104 134 264 204 . . 56 Maximum Alert Level 2 | . 1 . 1 2 2 . . . Low Security (%) 91 | 100 99 100 58 41 36 . . 100 Level 1 7 | . . . 41 33 61 . . . Level 2 . | . . . . 24 2 . . . Level 3 . | . . . . . . . . . Level 4 . | . . . . . . . . . Level 5 . | . . . . . . . . . High Security . | . . . . . . . . . Max Security . | . . . . . . . . . Squads Dispatched 8 | . 2 . 1 . 3 . . 2 Investigation 1 | . . . 1 . . . . . Extermination 1 | . . . . . . . . 1 Reinforcement 5 | . 2 . . . 3 . . . Assault . | . . . . . . . . . Garrison 1 | . . . . . . . . 1 Intercept . | . . . . . . . . . Searches Triggered . | . . . . . . . . . Construction Impeded 1 | . . . . . 1 . . . Haulers Reinforced . | . . . . . . . . . Active Scanning Responses . | . . . . . . . . . Cargo Convoy Interrupts . | . . . . . . . . . Stealth | -11 -10 -10 -9 -8 -7 -7 -7 -6 --------- Run | Yrd Mat Min Mat Mat Fac Low Low Fac Distress Signals 5 | . 1 . 2 1 . . . 1 Communications Jammed . | . . . . . . . . . Distress Signals . | . . . . . . . . . Times Spotted 85 | . 11 1 24 15 17 6 . 11 Peak Tracking Total 12 | . 4 1 12 4 4 3 . 7 Tactical Retreats 1 | . . . . 1 . . . . Traps | -11 -10 -10 -9 -8 -7 -7 -7 -6 ------- Run | Yrd Mat Min Mat Mat Fac Low Low Fac Traps Triggered 5 | . . . 2 . . . . 3 Indirectly . | . . . . . . . . . Trap Hack Attempts . | . . . . . . . . . Triggered . | . . . . . . . . . Disarmed . | . . . . . . . . . Reprogrammed . | . . . . . . . . . Reused . | . . . . . . . . . Traps Extracted . | . . . . . . . . . Installed . | . . . . . . . . . Triggered 1 | . . . . . . . 1 . Machines | -11 -10 -10 -9 -8 -7 -7 -7 -6 ---------- Run | Yrd Mat Min Mat Mat Fac Low Low Fac Machines Disabled 15 | . 4 . 3 4 4 . . . Max in Single Turn 2 | . 1 . 1 1 2 . . . Machines Repaired . | . . . . . . . . . Machines Dismantled . | . . . . . . . . . Machines Sabotaged . | . . . . . . . . . Overloaded Fab Kills . | . . . . . . . . . Hacking | -11 -10 -10 -9 -8 -7 -7 -7 -6 --------- Run | Yrd Mat Min Mat Mat Fac Low Low Fac Machines Accessed 10 | . 2 1 1 3 2 1 . . Terminals 5 | . 1 . . 3 1 . . . Fabricators 1 | . . . . . 1 . . . Repair Stations . | . . . . . . . . . Recycling Units 1 | . 1 . . . . . . . Scanalyzers 1 | . . . 1 . . . . . Garrison Access . | . . . . . . . . . Total Hacks 18 | . 4 1 2 7 3 1 . . Successful 12 | . 2 1 2 4 2 1 . . Failed 6 | . 2 . . 3 1 . . . Catastrophic 1 | . . . . . 1 . . . Database Lockouts . | . . . . . . . . . Manual . | . . . . . . . . . Terminals 11 | . 2 . . 7 2 . . . Fabricators 1 | . . . . . 1 . . . Repair Stations . | . . . . . . . . . Recycling Units 2 | . 2 . . . . . . . Scanalyzers 2 | . . . 2 . . . . . Garrison Access . | . . . . . . . . . Terminal Hacks 9 | . 1 1 . 4 2 1 . . Record 5 | . 1 . . 2 2 . . . Open Door 2 | . . 1 . . . 1 . . Locate Traps 1 | . . . . 1 . . . . Hauler Manifests 1 | . . . . 1 . . . . Fabricator Hacks . | . . . . . . . . . Repair Station Hacks . | . . . . . . . . . Recycling Unit Hacks 1 | . 1 . . . . . . . Process 1 | . 1 . . . . . . . Scanalyzer 2 | . . . 2 . . . . . Insert Component 1 | . . . 1 . . . . . Analyze 1 | . . . 1 . . . . . Garrison Access Hacks . | . . . . . . . . . Unauthorized Hacks . | . . . . . . . . . Terminals . | . . . . . . . . . Fabricators . | . . . . . . . . . Repair Stations . | . . . . . . . . . Recycling Units . | . . . . . . . . . Scanalyzers . | . . . . . . . . . Garrison Access . | . . . . . . . . . Data Cores Recovered . | . . . . . . . . . Used . | . . . . . . . . . Hacking Detections 6 | . 1 . . 3 2 . . . Full Trace Events . | . . . . . . . . . Feedback Events . | . . . . . . . . . Feedback Blocked . | . . . . . . . . . Robot Schematics Acquired . | . . . . . . . . . Robots Built . | . . . . . . . . . Authchips . | . . . . . . . . . Time . | . . . . . . . . . Total Robot Build Rating . | . . . . . . . . . Part Schematics Acquired 1 | . . . 1 . . . . . Parts Built . | . . . . . . . . . Authchips . | . . . . . . . . . Time . | . . . . . . . . . Total Part Build Rating . | . . . . . . . . . Parts Repaired . | . . . . . . . . . Time . | . . . . . . . . . Parts Recycled . | . . . . . . . . . Recycled Matter 4 | . 4 . . . . . . . Retrieved Matter . | . . . . . . . . . Retrieved Components . | . . . . . . . . . Parts Scanalyzed 1 | . . . 1 . . . . . Part Schematics Acquired 1 | . . . 1 . . . . . Parts Damaged . | . . . . . . . . . Bothacking | -11 -10 -10 -9 -8 -7 -7 -7 -6 ------------ Run | Yrd Mat Min Mat Mat Fac Low Low Fac Used RIF Installer . | . . . . . . . . . Robots Hacked . | . . . . . . . . . Non-combat . | . . . . . . . . . Combat . | . . . . . . . . . Robot Hacks Applied . | . . . . . . . . . Relay Couplers Released . | . . . . . . . . . Fabnet Peak Effective % . | . . . . . . . . . Robots Rewired . | . . . . . . . . . Allies Hacked . | . . . . . . . . . Hacks Repelled . | . . . . . . . . . Allies | -11 -10 -10 -9 -8 -7 -7 -7 -6 -------- Run | Yrd Mat Min Mat Mat Fac Low Low Fac Total Allies . | . . . . . . . . . Largest Group . | . . . . . . . . . Highest-Rated Group . | . . . . . . . . . Highest-Rated Ally . | . . . . . . . . . Total Orders . | . . . . . . . . . Ally Attacks . | . . . . . . . . . Total Damage . | . . . . . . . . . Kills . | . . . . . . . . . Allies Corrupted . | . . . . . . . . . Allies Melted . | . . . . . . . . . Intel | -11 -10 -10 -9 -8 -7 -7 -7 -6 ------- Run | Yrd Mat Min Mat Mat Fac Low Low Fac Robot Analysis Total . | . . . . . . . . . Derelict Logs Recovered 3 | . . 2 . . . 1 . . Drone Launches . | . . . . . . . . . Drone Recoveries . | . . . . . . . . . Exploration | -11 -10 -10 -9 -8 -7 -7 -7 -6 ------------- Run | Yrd Mat Min Mat Mat Fac Low Low Fac Turns Passed 15005 | 70 10368 658 1036 453 727 751 76 866 Spaces Moved 2718 | 46 345 335 548 271 366 446 38 323 Core 392 | 45 1 . 142 6 5 . . 193 Treads 1266 | 1 344 335 314 . 153 111 . 8 Legs 1060 | . . . 92 265 208 335 38 122 Wheels . | . . . . . . . . . Hover . | . . . . . . . . . Flight . | . . . . . . . . . Fastest Speed 50 | 50 160 160 100 120 120 120 190 50 Average Speed 157 | 123 160 161 163 133 173 155 190 145 Slowest Speed 400 | 200 200 165 250 250 400 190 190 300 Overloaded Moves . | . . . . . . . . . Propulsion Burnouts . | . . . . . . . . . Robots Hopped . | . . . . . . . . . Cave-ins Triggered . | . . . . . . . . . Exploration Rate (%) 31 | 4 47 84 41 24 9 58 10 3 Regions Visited 8 Branch Regions 3 Pre-discovered Areas 2 | . . 2 . . . . . . Known Exits Taken . | . . . . . . . . . Unknown Exits Taken 8 | 1 1 1 1 1 1 1 1 . Scrap Searched 3 | . . 1 . . . 1 1 . Spaces Dug 6 | . . . . . 6 . . . Terrain Destroyed 683 | . 114 36 235 167 102 29 . . Melee . | . . . . . . . . . Projectile . | . . . . . . . . . AOE 683 | . 114 36 235 167 102 29 . . Terrain Rammed . | . . . . . . . . . Walls Destroyed . | . . . . . . . . . Machines Disabled . | . . . . . . . . . Actions | -11 -10 -10 -9 -8 -7 -7 -7 -6 --------- Run | Yrd Mat Min Mat Mat Fac Low Low Fac Total 13239 | 60 10138 449 636 332 427 485 39 673 Wait 10216 | . 9765 109 22 19 2 14 . 285 Move 2710 | 45 344 334 547 270 365 445 37 323 Hop . | . . . . . . . . . Pick Up 50 | 6 9 1 5 13 13 2 . 1 Fast Attach 13 | 2 3 . . . 1 6 1 . Attach 46 | 4 . . 9 14 12 1 . 6 Detach 6 | . . . 2 . 1 . . 3 Swap 11 | 1 2 1 4 . 2 1 . . Drop 19 | 2 4 2 1 . 6 4 . . Fire 134 | . 11 2 37 15 25 12 1 31 Melee . | . . . . . . . . . Ram 27 | . . . 3 . . . . 24 Kick 2 | . . . 1 1 . . . . Crush 5 | . . . 5 . . . . . Escape Stasis . | . . . . . . . . . Rewire . | . . . . . . . . . Trap . | . . . . . . . . . Miscellaneous . | . . . . . . . . . Route ------- -11/Scrapyard -10/Materials -10/Mines -9/Materials -8/Materials -7/Factory -7/Lower Caves -7/Lower Caves -6/Factory History --------- Turn | Location | Event 11 | -11/Scrapyard | Discovered new exit (range 16) 71 | -11/Scrapyard | Entered Materials 300 | -10/Materials | Build established: Mutant 10183 | -10/Materials | Discovered new exit (range 12) 10439 | -10/Materials | Entered Mines 10508 | -10/Mines | Met a Derelict bent on vengeance 10601 | -10/Mines | Learned location of Zion (-7) 10605 | -10/Mines | Learned Materials terminal intel 10794 | -10/Mines | Learned location of Storage (-8) 10866 | -10/Mines | Met a Derelict who couldn't figure out how to use a Trap Extractor 11071 | -10/Mines | Discovered new exit (range 11) 11097 | -10/Mines | Entered Materials 11097 | -9/Materials | Evolved 2 slots: Propulsion x2 11098 | -9/Materials | Loaded intel: 11 terminal locations 11741 | -9/Materials | Destroyed 10 combat bots 11777 | -9/Materials | Core integrity fell below 50% 11809 | -9/Materials | Lost 6 parts (4n1u1w) 12056 | -9/Materials | Core integrity fell below 20% 12088 | -9/Materials | Lost 5 parts (1n1u3w) 12118 | -9/Materials | Discovered new exit (range 16) 12133 | -9/Materials | Entered another Materials area 12133 | -8/Materials | Evolved 2 slots: Utility x2 12346 | -8/Materials | Lost 4 parts (2n2w) 12479 | -8/Materials | Discovered new exit (range 8) 12586 | -8/Materials | Entered Factory 12586 | -7/Factory | Evolved 2 slots: Power x1, Weapon x1 13090 | -7/Factory | Build established: Bomber 13292 | -7/Factory | Discovered new exit (range 15) 13313 | -7/Factory | Entered Lower Caves 13352 | -7/Lower Caves | Lost 7 parts (2n2u3w) 13374 | -7/Lower Caves | Found Prototype Device 13374 | -7/Lower Caves | Identified Heart of Steel 13759 | -7/Lower Caves | Build established: Scavenger-Mutant 14026 | -7/Lower Caves | Learned Factory terminal intel 14039 | -7/Lower Caves | Discovered new exit (range 14) 14064 | -7/Lower Caves | Entered another Lower Caves area 14126 | -7/Lower Caves | Discovered new exit (range 8) 14140 | -7/Lower Caves | Entered Factory 14140 | -6/Factory | Evolved 2 slots: Power x1, Propulsion x1 14141 | -6/Factory | Loaded intel: 26 terminal locations 14370 | -6/Factory | Build established: Scavenger-Gunner 14630 | -6/Factory | Garrison activated, responded to threat 14782 | -6/Factory | Lost 12 parts (2p5n1u4w) 14875 | -6/Factory | Core integrity fell below 50% 14942 | -6/Factory | Build established: Mutant 14997 | -6/Factory | Core integrity fell below 20% 15006 | -6/Factory | Destroyed by S-27 Virus with Autogun Last Messages --------------- 14968_ Slammed into R-10 Processor. 14972_ R-10 Processor knocked back. 14973_ Slammed into R-10 Processor. 14974_ ALERT: Rogue bot located, Programmers report to Factory Zone 6I. 14974_ Slammed into R-10 Processor. 14977_ W-25 Informer sends out distress signal. 14977_ Triggered Proton Bomb Trap. 14977_ A bubble of electromagnetic force engulfs the area. 14977_ R-10 Processor destroyed. 14977_ Subcomponent Replicator disabled. 14977_ K-01 Serf destroyed. 14977_ Chain reaction triggered in Corrupted Imp. Ion Engine. 14978_ Acquired 109 matter. 14980_ Acquired 26 matter. 15000_ Heart of Steel destroyed. 15004_ R-10 Processor collects Corrupted Com. Wheel. Map ----- +----------------------------------------------------+ | | | | | | | ?????????????????????????????????????????????????? | | ?????????????????????????????????????????????????? | | ?????????????????????????????????????????????????? | | ?????????????????????????????????????????????????? | | ?????????????????????????????????????????????????? | | ?????????????????????????????????????????????????? | | ???????????????????????????????##############????? | | ???????????????????????????????# #????? | | ???????????????????????????????# #????? | | ???????????????????????????????# #????? | | ?????????????????????########### #????? | | ?????????????????????# # #????? | | ?????????????????????# # [[#????? | | ?????????????????????# !# [ #????? | | ?????????????????????# # #????? | | ?????????????????????# """ # #????? | | ?????????????????????# """"" # #????? | | ?????????????????????# """"" # #????? | | ?????????????????????# # #????? | | ??????????????###########+############+######????? | | ??????????????# !! #?????? | | ??????????????# ]! #?????? | | ??????????????#^ ]! @ #?????? | | ??????????????# #?????? | | ??????????????# #?????? | | ??????????????# ############+#######??? | | ??????????????# #?????# #??? | | ??????????????# #?????# ""G"" #??? | | ??????????????# #?????# " " #??? | | ??????????????# #?????# " " #??? | | ??????????##### #?????# !#??? | | ##"""#pR " #?????# !! #??? | | !! " t #?????# !] """" #??? | | ??????#####"""#= " #?????# !! """" #??? | | ??????????##### = " #?????#! """" #??? | | ??????????????# ""ssss #?????# """" #??? | | ??????????????# * #?????# #??? | | ??????????????# #?????# #??? | | ??????????????# #?????##############??? | | ??????????????# """" #?????????????????????? | | ??????????????# """" #?????????????????????? | | ??????????????# """" ???????????????????? | | ??????????????# """" ### ?????????????????? | | ??????????????# """" #???? ????????????????? | | ??????????????# """" #?????????????????????? | | ??????????????# """" #?????????????????????? | | ??????????????# ? ###?????????????????????? | +----------------------------------------------------+ Best States ------------- Heat Dissipation 51 Energy Generation 29 Energy Capacity 365 Matter Stores 300 Matter Capacity 300 Sight Range 16 Terrain Scan Density 10 Armor Coverage 225 Evasion (%) 59 Core Analysis 6 Recoil Reduction 4 Item Schematics ----------------- Hrd. Medium Armor Plating | -9/Materials | Scanalyzed Robot Schematics ------------------ None Fabricated ------------ Nothing Alien Tech Used ----------------- None Achievements -------------- Fist Fight Hey, That's Mine! Use The Force Challenges ------------ None Game ------ Seed DisruptorThrusterMaul Manual? 0 Play Time 01:00:04 Cumulative 10.1 hours Start 2024.04.07 @ 17:09:09 End 2024.04.09 @ 18:23:16 Sessions 3 Manual Loads 0 Difficulty Rogue Special Mode None Game No. 13 Rogue 13 Adventurer 0 Explorer 0 Win Type - Total 0 Types 0/0/0/0/0/0/0/0/0 Lore% 18 Gallery% 14 Achievement% 16 Wizard Run 0 Options --------- Layout 1 ASCII 0 Keyboard 0 Movement Mouse Keybinds 0 Fullscreen 1 Font 24/Smallcaps Map View 50x35 Zoom Use 0% Tactical HUD 1 Map Filters NONE Filters NONE Steam 1 RUN: db13d09d-42fc-4281-8975-8fe30ada6a89